bitfinex-derivatives/quotes_BTCF0:USTF0_20251108
["timestamp","ask_amount","ask_price","bid_price","bid_amount"]
[1762610913016,0.57868648,101770.0,101760.0,0.05827]
[1762610913219,0.57868648,101770.0,101760.0,0.05727]
[1762610913421,0.57968648,101770.0,101760.0,0.05727]
[1762610913926,0.57968648,101770.0,101760.0,0.05627]
[1762610914220,0.57868648,101770.0,101760.0,0.05727]
[1762610914617,0.57868648,101770.0,101760.0,0.05827]
[1762610915332,0.57868648,101770.0,101760.0,0.05727]
[1762610916216,0.57868648,101770.0,101760.0,0.05627]
[1762610916417,0.1062649,101760.0,101750.0,0.14984855]
[1762610916629,0.4750149,101760.0,101750.0,0.19337855]
[1762610916924,0.58859243,101760.0,101750.0,0.19337855]
[1762610917422,0.58859243,101760.0,101750.0,0.29170305]
[1762610917628,0.58859243,101760.0,101750.0,0.29270305]
[1762610918023,0.58859243,101760.0,101750.0,0.29370305]
[1762610918227,0.58859243,101760.0,101750.0,0.19537855]
[1762610919116,0.58859243,101760.0,101750.0,0.17390855]
[1762610919319,0.58859243,101760.0,101750.0,0.29370305]
[1762610919829,0.58859243,101760.0,101750.0,0.19537855]
[1762610920627,0.58859243,101760.0,101750.0,0.14410305]
[1762610921722,0.58859243,101760.0,101750.0,0.04577855]
[1762610922125,0.58859243,101760.0,101750.0,0.02430855]
[1762610922328,0.59654243,101760.0,101750.0,0.00224855]
[1762610924232,0.58859243,101760.0,101750.0,0.12202315]
[1762610925527,0.58859243,101760.0,101750.0,0.04678855]
[1762610925825,0.58859243,101760.0,101750.0,0.00224855]
[1762610926129,0.1142439,101730.0,101720.0,0.1564735]
[1762610926329,0.0159,101730.0,101720.0,0.78820802]
[1762610926526,0.20547305,101730.0,101720.0,0.74366802]
[1762610926724,0.20547305,101730.0,101720.0,0.42740802]
[1762610926920,0.20557458,101730.0,101720.0,0.1564736]
[1762610927125,0.20557458,101730.0,101720.0,0.42740812]
[1762610927325,0.56737458,101730.0,101720.0,0.33405452]
[1762610927525,0.56737458,101730.0,101720.0,0.43240812]
[1762610928330,0.56837458,101730.0,101720.0,0.43740812]
[1762610928630,0.56837458,101730.0,101720.0,0.33905452]
[1762610928825,0.20757458,101730.0,101720.0,0.06812]
[1762610929427,0.57834619,101730.0,101720.0,0.1926185]
[1762610929627,0.20757458,101730.0,101720.0,0.1926185]
[1762610930135,0.56837458,101730.0,101720.0,0.1926185]
[1762610930327,0.56837458,101730.0,101720.0,0.094265]
[1762610930528,0.20757458,101730.0,101720.0,0.1926185]
[1762610931232,0.56837458,101730.0,101720.0,0.094265]
[1762610932227,0.56837458,101730.0,101720.0,0.04503]
[1762610932524,0.56837458,101730.0,101720.0,0.02358]
[1762610932833,0.56837458,101730.0,101720.0,0.01]
[1762610933235,0.56737458,101730.0,101720.0,0.019]
[1762610933935,0.56637458,101730.0,101720.0,0.014]
[1762610934328,0.56637458,101730.0,101720.0,0.03545]
[1762610935036,0.20557458,101730.0,101720.0,0.42782802]
[1762610935329,0.20657458,101730.0,101720.0,0.1558935]
[1762610935736,0.54375868,101730.0,101720.0,0.32847452]
[1762610935938,0.54375868,101730.0,101720.0,0.05754]
[1762610936231,0.08361478,101730.0,101720.0,0.42782802]
[1762610936431,0.18195868,101730.0,101720.0,0.1830385]
[1762610936639,0.18195868,101730.0,101720.0,0.45397302]
[1762610936938,0.08361478,101730.0,101720.0,0.45397302]
[1762610937233,0.00010153,101730.0,101720.0,0.45497302]
[1762610937434,0.00010153,101730.0,101720.0,0.5448385]
[1762610937635,0.09844543,101730.0,101720.0,0.81577302]
[1762610938125,0.09844543,101730.0,101720.0,0.81477302]
[1762610938330,0.09844543,101730.0,101720.0,0.81577302]
[1762610938526,0.00010153,101730.0,101720.0,0.81577302]
[1762610939442,0.09844543,101730.0,101720.0,0.81577302]
[1762610939840,0.00010153,101730.0,101720.0,0.81577302]
[1762610940240,0.09844543,101730.0,101720.0,0.81577302]
[1762610940747,0.00010153,101730.0,101720.0,0.81577302]
[1762610941046,0.00014702,101740.0,101730.0,0.1570439]
[1762610941235,0.00014702,101740.0,101730.0,0.45442506]
[1762610941745,0.00014702,101740.0,101730.0,0.81522506]
[1762610941944,0.00014702,101740.0,101730.0,0.85037456]
[1762610942142,0.4591221,101760.0,101750.0,0.0587]
[1762610942336,0.4591221,101760.0,101750.0,0.32963452]
[1762610942538,0.56496297,101760.0,101750.0,0.32963452]
[1762610943144,0.56496297,101760.0,101750.0,0.0587]
[1762610943848,0.54135296,101760.0,101750.0,0.0587]
[1762610944450,0.0983246,101750.0,101740.0,0.16329702]
[1762610944644,0.4591246,101750.0,101740.0,0.16329702]
[1762610944840,0.56643846,101750.0,101740.0,0.20844702]
[1762610945638,0.56643846,101750.0,101740.0,0.42811574]
[1762610945943,0.0993221,101760.0,101750.0,0.1570246]
[1762610946149,0.0993221,101760.0,101750.0,0.42795912]
[1762610946350,0.20389116,101760.0,101750.0,0.32963452]
[1762610946546,0.0983246,101750.0,101740.0,4e-08]
[1762610946750,0.0983439,101730.0,101720.0,0.05815]
[1762610946950,0.4591439,101730.0,101720.0,0.05815]
[1762610947250,0.9279796,101730.0,101720.0,0.05815]
[1762610948041,0.5671796,101730.0,101720.0,0.05815]
[1762610948354,0.5671796,101730.0,101720.0,0.06215]
[1762610948655,0.0983439,101730.0,101720.0,0.43143812]
[1762610948846,0.0993439,101730.0,101720.0,0.43143812]
[1762610949046,0.0993439,101730.0,101720.0,0.33308452]
[1762610949245,0.4601439,101730.0,101720.0,0.33308452]
[1762610949656,0.0993439,101730.0,101720.0,0.33308452]
[1762610949852,0.0993439,101730.0,101720.0,0.32908452]
[1762610950047,0.4611439,101730.0,101720.0,0.32908452]
[1762610950248,0.1003439,101730.0,101720.0,0.42743812]
[1762610950649,0.1003439,101730.0,101720.0,0.78823812]
[1762610950650,0.002,101730.0,101720.0,0.78823812]
[1762610950949,0.16308002,101740.0,101730.0,0.0587]
[1762610951155,0.52388002,101740.0,101730.0,0.32963452]
[1762610951351,0.16308002,101740.0,101730.0,0.32963452]
[1762610951860,0.13946389,101740.0,101730.0,0.32963452]
[1762610952150,0.50226389,101740.0,101730.0,0.33063452]
[1762610952359,0.14146389,101740.0,101730.0,0.1580439]
[1762610952550,0.14146389,101740.0,101730.0,0.0597]
[1762610952747,0.12598065,101750.0,101740.0,0.02288]
[1762610952948,0.3608,101760.0,101750.0,0.1434746]
[1762610953162,0.3608,101760.0,101750.0,0.41440912]
[1762610953357,0.3608,101770.0,101760.0,0.0983149]
[1762610953553,0.04416,101770.0,101760.0,0.41439942]
[1762610953755,0.04416,101770.0,101760.0,0.1434649]
[1762610954462,0.04416,101770.0,101760.0,0.5042649]
[1762610954759,0.04416,101770.0,101760.0,0.77519942]
[1762610954959,0.02315,101770.0,101760.0,0.77719942]
[1762610955157,0.001,101770.0,101760.0,0.77719942]
[1762610956557,0.001,101770.0,101760.0,0.78019942]
[1762610956865,0.5042652,101770.0,101760.0,0.05015]
[1762610957757,0.61298403,101770.0,101760.0,0.02788]
[1762610958260,0.61298403,101770.0,101760.0,0.05015]
[1762610958964,0.61298403,101770.0,101760.0,0.005]
[1762610959963,0.5893746,101770.0,101760.0,0.005]
[1762610961468,0.5893746,101770.0,101760.0,0.02788]
[1762610961666,0.5893746,101770.0,101760.0,0.05015]
[1762610961973,0.5893746,101770.0,101760.0,0.02788]
[1762610962567,0.6018046,101770.0,101760.0,0.02788]
[1762610962766,0.6018046,101770.0,101760.0,0.005]
[1762610963161,0.6018046,101770.0,101760.0,0.05015]
[1762610963658,0.56782403,101770.0,101760.0,0.3298533]
[1762610963860,0.4591052,101770.0,101760.0,0.3298533]
[1762610964065,0.0983052,101770.0,101760.0,0.3298533]
[1762610964265,0.59438762,101780.0,101770.0,0.0587]
[1762610964470,0.59438762,101780.0,101770.0,0.2265384]
[1762610964681,0.7055215,101780.0,101770.0,0.2265384]
[1762610964970,0.1424652,101770.0,101760.0,0.2315384]
[1762610965175,0.5032652,101770.0,101760.0,0.2315384]
[1762610965473,0.5032652,101770.0,101760.0,0.0637]
[1762610965962,0.61406119,101770.0,101760.0,0.02788]
[1762610966271,0.1424652,101770.0,101760.0,0.1462449]
[1762610966578,0.1424652,101770.0,101760.0,0.3120833]
[1762610966961,0.1424652,101770.0,101760.0,0.3130833]
[1762610967362,0.59435812,101780.0,101770.0,0.04545]
[1762610967562,0.59435812,101780.0,101770.0,0.2132884]
[1762610967767,0.70737489,101780.0,101770.0,0.2132884]
[1762610967970,0.68376834,101780.0,101770.0,0.04545]
[1762610968672,0.68376834,101780.0,101770.0,0.04645]
[1762610968972,0.59278834,101780.0,101770.0,0.04645]
[1762610969464,0.60521834,101780.0,101770.0,0.04745]
[1762610969868,0.60521834,101780.0,101770.0,0.04645]
[1762610970170,0.60521834,101780.0,101770.0,0.0224]
[1762610971068,0.1424352,101770.0,101760.0,0.2260984]
[1762610971276,0.1424449,101760.0,101750.0,0.03609702]
[1762610971571,0.60582198,101760.0,101750.0,0.15747152]
[1762610971967,0.61825198,101760.0,101750.0,0.00014702]
[1762610972160,0.78609038,101760.0,101750.0,0.00014702]
[1762610972564,0.1424739,101730.0,101720.0,0.324448]
[1762610972760,0.1424739,101730.0,101720.0,0.2260984]
[1762610972970,0.1424739,101730.0,101720.0,0.3244519]
[1762610973159,0.1424739,101730.0,101720.0,0.2260984]
[1762610973363,0.61536077,101730.0,101720.0,0.05826]
[1762610973561,0.61536077,101730.0,101720.0,0.04545]
[1762610973766,0.1424835,101720.0,101710.0,0.22624542]
[1762610974571,0.1424835,101720.0,101710.0,0.05840702]
[1762610974777,0.60988318,101720.0,101710.0,0.05840702]
[1762610975461,0.60988318,101720.0,101710.0,0.04559702]
[1762610975771,0.60988318,101720.0,101710.0,0.00014702]
[1762610975974,0.58626449,101720.0,101710.0,0.28874862]
[1762610976270,0.58626449,101720.0,101710.0,0.04559702]
[1762610976472,0.58626449,101720.0,101710.0,0.04759702]
[1762610976670,0.58626449,101720.0,101710.0,0.21543542]
[1762610977175,0.58626449,101720.0,101710.0,0.31379862]
[1762610977366,0.58626449,101720.0,101710.0,0.21543542]
[1762610977567,0.58626449,101720.0,101710.0,0.31379862]
[1762610979381,0.24908318,101720.0,101710.0,0.31379862]
[1762610979776,0.24908318,101720.0,101710.0,0.21543542]
[1762610980277,0.46739968,101720.0,101710.0,0.31379862]
[1762610980472,0.20495318,101720.0,101710.0,0.67459862]
[1762610980782,0.1424785,101730.0,101720.0,0.05826]
[1762610980973,0.1424739,101730.0,101720.0,0.3244519]
[1762610981176,0.1424835,101720.0,101710.0,0.00214702]
[1762610981474,0.60987405,101720.0,101710.0,0.21543542]
[1762610981676,0.24907405,101720.0,101710.0,0.67459862]
[1762610981873,0.24907405,101720.0,101710.0,0.50676022]
[1762610982067,0.24907405,101720.0,101710.0,0.21543542]
[1762610982268,0.60987405,101720.0,101710.0,0.21543542]
[1762610982481,0.24907405,101720.0,101710.0,0.21443542]
[1762610982885,0.60987405,101720.0,101710.0,0.21343542]
[1762610983267,0.60987405,101720.0,101710.0,0.21443542]
[1762610984081,0.60987405,101720.0,101710.0,0.31379862]
[1762610984581,0.60987405,101720.0,101710.0,0.32708862]
[1762610984986,0.60987405,101720.0,101710.0,0.22872542]
[1762610985477,0.58763405,101720.0,101710.0,0.22872542]
[1762610985783,0.60966405,101720.0,101710.0,0.22872542]
[1762610986281,0.24886405,101720.0,101710.0,0.68788862]
[1762610986478,0.24886405,101720.0,101710.0,0.32708862]
[1762610986878,0.24886405,101720.0,101710.0,0.68788862]
[1762610987081,0.24886405,101720.0,101710.0,0.32708862]
[1762610987486,0.5951687,101730.0,101720.0,0.1570135]
[1762610987682,0.5951687,101730.0,101720.0,0.3248519]
[1762610987984,0.70448113,101730.0,101720.0,0.3248519]
[1762610989381,0.70448113,101730.0,101720.0,0.2264984]
[1762610990185,0.70448113,101730.0,101720.0,0.2274984]
[1762610990485,0.70448113,101730.0,101720.0,0.2284984]
[1762610991175,0.70448113,101730.0,101720.0,0.6876519]
[1762610991176,0.20033243,101730.0,101720.0,0.6876519]
[1762610991483,0.09102,101730.0,101720.0,0.6876519]
[1762610992681,0.09102,101730.0,101720.0,0.9334119]
[1762610992986,0.09102,101730.0,101720.0,0.9685614]
[1762610994275,0.09102,101730.0,101720.0,0.7228014]
[1762610996591,0.09102,101730.0,101720.0,0.9685614]
[1762610996790,0.05602,101730.0,101720.0,0.9685614]
[1762610997091,0.00014702,101740.0,101730.0,0.1569239]
[1762610997294,0.00014702,101740.0,101730.0,0.7207118]
[1762610997486,0.00014702,101740.0,101730.0,0.9664318]
[1762610997998,0.00014702,101740.0,101730.0,0.85149381]
[1762610998199,0.00014702,101740.0,101730.0,0.77361221]
[1762610998400,0.00014702,101740.0,101730.0,1.01933221]
[1762610999397,0.04583702,101740.0,101730.0,0.7207118]
[1762610999703,0.00014702,101740.0,101730.0,0.7207118]
[1762611000099,0.00114702,101740.0,101730.0,0.7287118]
[1762611000300,0.04683702,101740.0,101730.0,0.78161221]
[1762611001100,0.00114702,101740.0,101730.0,1.02733221]
[1762611001403,0.05797,101770.0,101760.0,0.1568949]
[1762611001597,0.05797,101770.0,101760.0,0.3247333]
[1762611001598,0.1439952,101770.0,101760.0,0.3247333]
[1762611003599,0.1439952,101770.0,101760.0,0.3277333]
[1762611003802,0.60857702,101780.0,101770.0,0.1568852]
[1762611004011,0.60857702,101780.0,101770.0,0.3247236]
[1762611004198,0.62126655,101780.0,101770.0,0.3247236]
[1762611004597,0.26046655,101780.0,101770.0,0.3247236]
[1762611004802,0.09112702,101780.0,101770.0,0.6855236]
[1762611005306,0.09112702,101780.0,101770.0,0.6875236]
[1762611005514,0.09112702,101780.0,101770.0,0.6885236]
[1762611005704,0.5174262,101800.0,101790.0,0.04576]
[1762611006007,0.61136989,101800.0,101790.0,0.3247043]
[1762611006202,0.51309369,101800.0,101790.0,0.3247043]
[1762611006408,0.40649,101800.0,101790.0,0.3247043]
[1762611006894,0.40749,101800.0,101790.0,0.3247043]
[1762611007706,0.1449662,101800.0,101790.0,0.3247043]
[1762611007906,0.1449662,101800.0,101790.0,0.2264184]
[1762611008109,0.1449662,101800.0,101790.0,0.3247043]
[1762611008406,0.04669,101800.0,101790.0,0.6855043]
[1762611008602,0.04869,101800.0,101790.0,0.6855043]
[1762611009209,0.003,101800.0,101790.0,0.6855043]
[1762611009705,0.02567,101800.0,101790.0,0.6855043]
[1762611010103,0.1239462,101800.0,101790.0,0.6855043]
[1762611010304,0.02567,101800.0,101790.0,0.6855043]
[1762611010608,0.02567,101800.0,101790.0,0.5176659]
[1762611010805,0.04869,101800.0,101790.0,0.6855043]
[1762611011013,0.1469662,101800.0,101790.0,0.6855043]
[1762611011313,0.04869,101800.0,101790.0,0.6855043]
[1762611011606,0.003,101800.0,101790.0,0.6855043]
[1762611012906,0.003,101800.0,101790.0,0.9311043]
[1762611013503,9.804e-05,101810.0,101800.0,0.1564762]
[1762611013704,9.804e-05,101810.0,101800.0,0.6851146]
[1762611013904,9.804e-05,101810.0,101800.0,0.9306746]
[1762611014515,9.804e-05,101810.0,101800.0,0.6851146]
[1762611015517,0.05844804,101810.0,101800.0,0.6851147]
[1762611015720,0.15671464,101810.0,101800.0,0.2260384]
[1762611015904,0.05844804,101810.0,101800.0,0.3273147]
[1762611016110,0.04578804,101810.0,101800.0,0.6911147]
[1762611016416,0.62919659,101810.0,101800.0,0.006]
[1762611018021,0.62919659,101810.0,101800.0,0.003]
[1762611018214,0.62919659,101810.0,101800.0,0.005]
[1762611018910,0.62919659,101810.0,101800.0,0.004]
[1762611020919,0.62919659,101810.0,101800.0,0.002]
[1762611021222,0.1566359,101790.0,101780.0,0.12159552]
[1762611021418,0.1538352,101770.0,101760.0,0.04576]
[1762611021720,0.1566649,101760.0,101750.0,0.04576]
[1762611021907,0.5174649,101760.0,101750.0,0.04576]
[1762611022108,0.1566746,101750.0,101740.0,0.32974595]
[1762611022312,0.5174746,101750.0,101740.0,0.04584397]
[1762611024611,0.5174746,101750.0,101740.0,0.04884397]
[1762611024817,0.5174746,101750.0,101740.0,0.14917817]
[1762611025117,0.5174746,101750.0,101740.0,0.05084397]
[1762611025323,0.15553752,101760.0,101750.0,0.1564146]
[1762611025510,0.15553752,101760.0,101750.0,0.32917198]
[1762611025709,0.26788575,101760.0,101750.0,0.32917198]
[1762611025918,0.62868575,101760.0,101750.0,0.04494]
[1762611026214,0.1215846,101750.0,101740.0,0.31182595]
[1762611026417,0.1215846,101750.0,101740.0,0.00308397]
[1762611026418,0.5166746,101750.0,101740.0,0.00308397]
[1762611026608,0.62902283,101750.0,101740.0,0.00308397]
[1762611027618,0.62902283,101750.0,101740.0,8.397e-05]
[1762611028213,0.62902283,101750.0,101740.0,0.00308397]
[1762611028523,0.62902283,101750.0,101740.0,0.00608397]
[1762611030616,0.62902283,101750.0,101740.0,0.02859397]
[1762611030821,0.62902283,101750.0,101740.0,0.42044015]
[1762611031023,0.62902283,101750.0,101740.0,0.43359015]
[1762611031221,0.40521,101750.0,101740.0,0.43359015]
[1762611031423,0.5035345,101750.0,101740.0,0.43359015]
[1762611031613,0.1427345,101750.0,101740.0,0.43359015]
[1762611031926,0.04441,101750.0,101740.0,0.79439015]
[1762611032826,0.1427345,101750.0,101740.0,0.43359015]
[1762611033327,0.1558745,101750.0,101740.0,0.32210595]
[1762611033529,0.5166745,101750.0,101740.0,0.05102397]
[1762611033728,0.1558745,101750.0,101740.0,0.05102397]
[1762611034027,0.5166745,101750.0,101740.0,0.05102397]
[1762611034526,0.05755,101750.0,101740.0,0.16250817]
[1762611034821,0.14287192,101760.0,101750.0,0.1564145]
[1762611035022,0.02340702,101760.0,101750.0,0.42749648]
[1762611035227,0.04455702,101760.0,101750.0,0.42749648]
[1762611035722,0.00014702,101760.0,101750.0,0.78829648]
[1762611036120,0.00014702,101760.0,101750.0,0.78929648]
[1762611036321,0.00014702,101760.0,101750.0,1.06037846]
[1762611036618,0.02326,101780.0,101770.0,0.1503752]
[1762611036818,0.40521,101790.0,101780.0,0.1432355]
[1762611037014,0.40521,101790.0,101780.0,0.41431748]
[1762611037219,0.04441,101790.0,101780.0,0.41431748]
[1762611037424,0.41844804,101800.0,101790.0,0.1432259]
[1762611037629,0.41844804,101800.0,101790.0,0.41430788]
[1762611037630,0.51672424,101800.0,101790.0,0.41430788]
[1762611038628,0.04450804,101800.0,101790.0,0.41730788]
[1762611039030,0.04450804,101800.0,101790.0,0.42030788]
[1762611040034,0.14278424,101800.0,101790.0,0.42030788]
[1762611040229,0.50358424,101800.0,101790.0,0.42030788]
[1762611040437,0.50358424,101800.0,101790.0,0.32202198]
[1762611041134,0.51672424,101800.0,101790.0,0.27708198]
[1762611041332,0.51672424,101800.0,101790.0,0.05094]
[1762611042430,0.51672424,101800.0,101790.0,0.001]
[1762611042631,0.62266304,101800.0,101790.0,0.003]
[1762611043939,0.62266304,101800.0,101790.0,0.002]
[1762611044340,0.1430559,101790.0,101780.0,0.04579]
[1762611044845,0.1545655,101780.0,101770.0,0.44191874]
[1762611045032,0.5153655,101780.0,101770.0,0.00014702]
[1762611045834,0.62127763,101780.0,101770.0,0.00014702]
[1762611047134,0.62127763,101780.0,101770.0,0.00114702]
[1762611047838,0.62127763,101780.0,101770.0,0.00314702]
[1762611048135,0.62127763,101780.0,101770.0,0.00214702]
[1762611048340,0.62127763,101780.0,101770.0,0.00014702]
[1762611049040,0.62127763,101780.0,101770.0,0.09845222]
[1762611050941,0.62127763,101780.0,101770.0,0.00114702]
[1762611051140,0.62127763,101780.0,101770.0,0.10145222]
[1762611051539,0.62127763,101780.0,101770.0,0.00314702]
[1762611053044,0.62127763,101780.0,101770.0,0.10145222]
[1762611053741,0.62127763,101780.0,101770.0,0.12420222]
[1762611054449,0.62127763,101780.0,101770.0,0.4185642]
[1762611054849,0.04302,101780.0,101770.0,0.7927142]
[1762611055843,0.05645,101780.0,101770.0,0.04917702]
[1762611056050,0.62652591,101780.0,101770.0,0.00314702]
[1762611056946,0.62652591,101780.0,101770.0,0.02562702]
[1762611058044,0.62652591,101780.0,101770.0,0.02362702]
[1762611058349,0.62652591,101780.0,101770.0,0.02562702]
[1762611060634,0.62652591,101780.0,101770.0,0.02462702]
[1762611060843,0.62652591,101780.0,101770.0,0.02762702]
[1762611061045,0.62652591,101780.0,101770.0,0.04940702]
[1762611061348,0.62652591,101780.0,101770.0,0.02762702]
[1762611061846,0.62652591,101780.0,101770.0,0.00514702]
[1762611062945,0.62652591,101780.0,101770.0,0.00314702]
[1762611063249,0.1513649,101760.0,101750.0,0.02635794]
[1762611063544,0.1562945,101750.0,101740.0,0.02644191]
[1762611063749,0.5170945,101750.0,101740.0,8.397e-05]
[1762611063945,0.62074107,101750.0,101740.0,8.397e-05]
[1762611064142,0.05754,101730.0,101720.0,0.56502234]
[1762611064448,0.05768702,101740.0,101730.0,0.1555439]
[1762611064650,0.15602122,101740.0,101730.0,0.42662588]
[1762611064852,0.05768702,101740.0,101730.0,0.42662588]
[1762611065149,0.05777099,101740.0,101730.0,0.42662588]
[1762611065852,0.15610519,101740.0,101730.0,0.42662588]
[1762611066553,0.15610519,101740.0,101730.0,0.04426]
[1762611066849,0.15610519,101740.0,101730.0,0.42662588]
[1762611067151,0.15710519,101740.0,101730.0,0.43462588]
[1762611068353,0.15710519,101740.0,101730.0,0.05226]
[1762611068553,0.15710519,101740.0,101730.0,0.32334198]
[1762611068744,0.62411848,101740.0,101730.0,0.008]
[1762611069854,0.62311848,101740.0,101730.0,0.004]
[1762611070055,0.26331848,101740.0,101730.0,0.004]
[1762611070350,0.62411848,101740.0,101730.0,0.004]
[1762611070651,0.15198428,101740.0,101730.0,0.42662578]
[1762611070953,0.05797,101730.0,101720.0,0.1555535]
[1762611071148,0.04454,101730.0,101720.0,0.81379342]
[1762611071461,0.04577099,101740.0,101730.0,0.1555438]
[1762611071754,0.17043961,101740.0,101730.0,0.5163438]
[1762611072049,0.26877381,101740.0,101730.0,0.32828198]
[1762611072246,0.62957381,101740.0,101730.0,0.32828198]
[1762611072452,0.26877381,101740.0,101730.0,0.79042578]
[1762611072754,0.26877381,101740.0,101730.0,0.42962578]
[1762611073153,0.26777381,101740.0,101730.0,0.42662578]
[1762611073452,0.17043961,101740.0,101730.0,0.42962578]
[1762611073751,0.17043961,101740.0,101730.0,0.43062578]
[1762611074150,0.17043961,101740.0,101730.0,0.79142578]
[1762611074349,0.15753519,101740.0,101730.0,0.33228198]
[1762611074549,0.51833519,101740.0,101730.0,0.33228198]
[1762611074950,0.51833519,101740.0,101730.0,0.43062578]
[1762611075148,0.42000099,101740.0,101730.0,0.43062578]
[1762611075649,0.51833519,101740.0,101730.0,0.43062578]
[1762611075955,0.15753519,101740.0,101730.0,0.43062578]
[1762611076158,0.15753519,101740.0,101730.0,0.31934198]
[1762611076455,0.51833519,101740.0,101730.0,0.004]
[1762611076641,0.62945267,101740.0,101730.0,0.004]
[1762611076848,0.1514335,101720.0,101710.0,0.38730496]
[1762611077146,0.1514335,101720.0,101710.0,0.43156496]
[1762611077353,0.1514335,101720.0,101710.0,0.54286816]
[1762611077549,0.1514335,101720.0,101710.0,0.51651022]
[1762611077755,0.1514335,101720.0,101710.0,0.05734702]
[1762611078052,0.1514335,101720.0,101710.0,0.04840702]
[1762611078053,0.15151354,101720.0,101710.0,0.04840702]
[1762611078556,0.15151354,101720.0,101710.0,0.14677022]
[1762611078757,0.15251354,101720.0,101710.0,0.4218522]
[1762611078947,0.15251354,101720.0,101710.0,0.05240702]
[1762611079352,0.15251354,101720.0,101710.0,0.15077022]
[1762611079552,0.15151354,101720.0,101710.0,0.15971022]
[1762611079852,0.15151354,101720.0,101710.0,0.06234702]
[1762611080154,0.15151354,101720.0,101710.0,0.4277922]
[1762611080452,0.15151354,101720.0,101710.0,0.329429]
[1762611080655,0.04462004,101720.0,101710.0,0.4277922]
[1762611081246,0.15640354,101720.0,101710.0,0.14377022]
[1762611081446,0.04462004,101720.0,101710.0,0.4277922]
[1762611081648,0.14297354,101720.0,101710.0,0.4267922]
[1762611081844,0.14297354,101720.0,101710.0,0.4287922]
[1762611082044,0.1563332,101710.0,101700.0,0.005]
[1762611082255,0.5171332,101710.0,101700.0,0.005]
[1762611082450,0.62785079,101710.0,101700.0,0.005]
[1762611083250,0.62785079,101710.0,101700.0,0.007]
[1762611083958,0.62785079,101710.0,101700.0,0.008]
[1762611085348,0.62785079,101710.0,101700.0,0.006]
[1762611085550,0.62985079,101710.0,101700.0,0.006]
[1762611086454,0.63185079,101710.0,101700.0,0.005]
[1762611087055,0.1427828,101700.0,101690.0,0.00014702]
[1762611087261,0.5035828,101700.0,101690.0,0.21268082]
[1762611087457,0.5035828,101700.0,101690.0,0.32460332]
[1762611087458,0.61504215,101700.0,101690.0,0.32460332]
[1762611087657,0.04441,101700.0,101690.0,0.32460332]
[1762611087860,0.0222,101700.0,101690.0,0.32460332]
[1762611088255,0.51908957,101710.0,101700.0,0.1564028]
[1762611088452,0.15828957,101710.0,101700.0,0.3244466]
[1762611088851,0.14485957,101710.0,101700.0,0.2260738]
[1762611089251,0.14485957,101710.0,101700.0,0.04449]
[1762611089457,0.50565957,101710.0,101700.0,0.1900538]
[1762611089661,0.50565957,101710.0,101700.0,0.02201]
[1762611090056,0.50565957,101710.0,101700.0,0.3109066]
[1762611090057,0.14485957,101710.0,101700.0,0.3109066]
[1762611090250,0.04849397,101710.0,101700.0,0.3109066]
[1762611090459,0.14685707,101710.0,101700.0,0.3109066]
[1762611090759,0.14685707,101710.0,101700.0,0.2125338]
[1762611090962,0.50765707,101710.0,101700.0,0.2125338]
[1762611091170,0.14685707,101710.0,101700.0,0.04449]
[1762611091357,0.50765707,101710.0,101700.0,0.04449]
[1762611091757,0.50765707,101710.0,101700.0,0.2125338]
[1762611092569,0.51808707,101710.0,101700.0,0.2125338]
[1762611092962,0.62798207,101710.0,101700.0,0.02201]
[1762611093165,0.1427829,101700.0,101690.0,0.05817702]
[1762611093359,0.5165029,101700.0,101690.0,0.04463702]
[1762611093559,0.5165029,101700.0,101690.0,0.15655952]
[1762611093754,0.5165029,101700.0,101690.0,0.05817702]
[1762611094059,0.04441,101700.0,101690.0,0.32460332]
[1762611094267,0.1427828,101700.0,101690.0,0.51735952]
[1762611094565,0.1427828,101700.0,101690.0,0.32460332]
[1762611095368,0.5175028,101700.0,101690.0,0.32460332]
[1762611095569,0.5175028,101700.0,101690.0,0.22622082]
[1762611095972,0.5045828,101700.0,101690.0,0.32460332]
[1762611096373,0.5045828,101700.0,101690.0,0.22622082]
[1762611096574,0.5175028,101700.0,101690.0,0.22622082]
[1762611096764,0.5175028,101700.0,101690.0,0.32460332]
[1762611097160,0.40621,101700.0,101690.0,0.32460332]
[1762611097472,0.1437829,101700.0,101690.0,0.68540332]
[1762611097672,0.1437829,101700.0,101690.0,0.22622082]
[1762611097860,0.1567029,101700.0,101690.0,0.22622082]
[1762611098565,0.1567029,101700.0,101690.0,0.32460332]
[1762611098875,0.5175029,101700.0,101690.0,0.21268082]
[1762611099873,0.5175029,101700.0,101690.0,0.19020082]
[1762611100082,0.5175029,101700.0,101690.0,0.21268082]
[1762611100283,0.5175029,101700.0,101690.0,0.04463702]
[1762611100483,0.5175029,101700.0,101690.0,0.21268082]
[1762611101184,0.5175029,101700.0,101690.0,0.31106332]
[1762611101575,0.5175029,101700.0,101690.0,0.14301952]
[1762611101781,0.5175029,101700.0,101690.0,0.21268082]
[1762611103088,0.5175029,101700.0,101690.0,0.04463702]
[1762611103391,0.62350717,101700.0,101690.0,0.04463702]
[1762611103686,0.62350717,101700.0,101690.0,0.14301952]
[1762611103886,0.62350717,101700.0,101690.0,0.31106332]
[1762611104885,0.62350717,101700.0,101690.0,0.21268082]
[1762611105383,0.62350717,101700.0,101690.0,0.16819082]
[1762611105580,0.62350717,101700.0,101690.0,0.00014702]
[1762611107582,0.62350717,101700.0,101690.0,0.14172962]
[1762611107985,0.62350717,101700.0,101690.0,0.00014702]
[1762611109577,0.62550717,101700.0,101690.0,0.00014702]
[1762611109777,0.62650717,101700.0,101690.0,0.02221702]
[1762611109990,0.62650717,101700.0,101690.0,0.00014702]
[1762611110188,0.26570717,101700.0,101690.0,0.02221702]
[1762611110379,0.62650717,101700.0,101690.0,0.04857496]
[1762611110583,0.62250717,101700.0,101690.0,0.02221702]
[1762611110785,0.62350717,101700.0,101690.0,0.2902198]
[1762611110985,0.62350717,101700.0,101690.0,0.1918372]
[1762611111286,0.15141427,101700.0,101690.0,0.69090774]
[1762611111493,0.24978717,101700.0,101690.0,0.6998007]
[1762611111991,0.26269717,101700.0,101690.0,0.6998007]
[1762611112187,0.26269717,101700.0,101690.0,0.3390007]
[1762611112690,0.24978717,101700.0,101690.0,0.6998007]
[1762611113087,0.24978717,101700.0,101690.0,0.72634709]
[1762611113283,0.24978717,101700.0,101690.0,0.72634703]
[1762611113784,0.1437829,101700.0,101690.0,0.72634703]
[1762611114786,0.001,101700.0,101690.0,0.6998007]
[1762611115381,0.001,101700.0,101690.0,0.75267706]
[1762611115582,0.001,101700.0,101690.0,0.71742616]
[1762611115782,0.04468,101710.0,101700.0,0.03492]
[1762611115982,0.1430432,101710.0,101700.0,0.72563276]
[1762611116290,0.1430432,101710.0,101700.0,0.36483276]
[1762611116995,0.5187532,101710.0,101700.0,0.36483276]
[1762611117187,0.1579532,101710.0,101700.0,0.36483276]
[1762611117495,0.1599532,101710.0,101700.0,0.36483276]